Workbook

Sheet Лист1
A1: Школа | C1: МБОУ "Большеключинская СОШ ЗМР РТ" | F1: Утвердил: | G1: должность | H1: Директор школы
A2: Типовое примерное меню приготавливаемых блюд | G2: фамилия | H2: З.А. Ибрагимов
A3: Возрастная категория | E3: 7-11 лет | G3: дата | H3: 9 | I3: 01 | J3: 2026
H4: день | I4: месяц | J4: год
A5: Неделя | B5: День недели | C5: Прием пищи | D5: Раздел меню | E5: Блюда | F5: Вес блюда, г | G5: Белки | H5: Жиры | I5: Углеводы | J5: Калорийность | K5: № рецептуры | L5: Цена
A6: 1 | B6: 1 | C6: Завтрак | D6: гор.блюдо | E6: Котлеты из мяса птицы | F6: 90 | G6: 10.493 | H6: 8.730 | I6: 6.771 | J6: 148 | K6: ТТК от 2024г
D7: гор.блюдо | E7: Каша гречневая вязкая | F7: 150 | G7: 3.500 | H7: 4.033 | I7: 22.028 | J7: 138 | K7: №303/2015г,Дели
D8: гор.напиток | E8: Компот из замороженной компотной смеси | F8: 200 | G8: 0.135 | H8: 0.023 | I8: 11.150 | J8: 46 | K8: ТТК 2021 г
D9: хлеб | E9: Хлеб ржано-пшеничный/ Хлеб пшеничный | F9: 40 | G9: 2.520 | H9: 0.360 | I9: 18.840 | J9: 91
D10: фрукты | E10: Плоды и ягоды свежие (яблоки) | F10: 100 | G10: 0.400 | H10: 0.400 | I10: 9.800 | J10: 47 | K10: №338 Дели 2015г
D11: закуска | E11: Салат из моркови | F11: 60 | G11: 0.702 | H11: 3.051 | I11: 6.720 | J11: 58 | K11: ТТК
D12: конд. изд. | E12: Печенье сдобное шоколадное | F12: 15 | G12: 1.166 | H12: 4.183 | I12: 9.224 | J12: 79 | K12: Акт от 2021г
D13: итого | F13: =SUM(F6:F12) -> 655 | G13: =SUM(G5:G12) -> 18.916 | H13: =SUM(H5:H12) -> 20.780 | I13: =SUM(I5:I12) -> 84.533 | J13: =SUM(J5:J12) -> 607 | L13: 77.76
A14: =A6 -> 1 | B14: =B6 -> 1 | C14: Обед | D14: закуска
D15: 1 блюдо
D16: 2 блюдо
D17: гарнир
D18: напиток
D19: хлеб бел.
D20: хлеб черн.
D23: итого | F23: =SUM(F14:F22) -> 0 | G23: =SUM(G14:G22) -> 0 | H23: 0 | I23: 0 | J23: 0 | L23: =SUM(L14:L22) -> 0
A24: =A6 -> 1 | B24: =B6 -> 1 | C24: Итого за день: | F24: =F13+F23 -> 655 | G24: =G13+G23 -> 18.916 | H24: 20.78 | I24: 84.533 | J24: 607 | L24: =L13+L23 -> 77.76
A25: 1 | B25: 2 | C25: Завтрак | D25: гор.блюдо | E25: Жаркое из птицы (грудки куриные) | F25: 200 | G25: 11.139 | H25: 11.261 | I25: 25.421 | J25: 248 | K25: ТТК от 2023г
D27: гор.напиток | E27: Компот из свежих плодов (яблоки) | F27: 200 | G27: 0.080 | H27: 0.080 | I27: 11.940 | J27: 49 | K27: ТТК от 2021г
D28: хлеб | E28: Хлеб ржано-пшеничный/ Хлеб пшеничный | F28: 40 | G28: 2.520 | H28: 0.360 | I28: 18.840 | J28: 91
D30: закуска | E30: Салат из белокочанной капусты | F30: 60 | G30: 0.931 | H30: 3.051 | I30: 5.645 | J30: 54 | K30: №45/2015г,Дели
D31: конд. изд. | E31: Вафли весовые | F31: 42 | G31: 5.500 | H31: 5.000 | I31: 26.000 | J31: 172
D32: итого | F32: =SUM(F25:F31) -> 542 | G32: =SUM(G25:G31) -> 20.170 | H32: =SUM(H25:H31) -> 19.752 | I32: =SUM(I25:I31) -> 87.846 | J32: =SUM(J25:J31) -> 614 | L32: 77.76
A33: =A25 -> 1 | B33: =B25 -> 2 | C33: Обед | D33: закуска
D34: 1 блюдо
D35: 2 блюдо
D36: гарнир
D37: напиток
D38: хлеб бел.
D39: хлеб черн.
D42: итого | F42: =SUM(F33:F41) -> 0 | G42: =SUM(G33:G41) -> 0 | H42: 0 | I42: 0 | J42: 0 | L42: =SUM(L33:L41) -> 0
A43: =A25 -> 1 | B43: =B25 -> 2 | C43: Итого за день: | F43: =F32+F42 -> 542 | G43: =G32+G42 -> 20.17 | H43: 19.752 | I43: 87.846 | J43: 614 | L43: =L32+L42 -> 77.76
A44: 1 | B44: 3 | C44: Завтрак | D44: гор.блюдо | E44: Гуляш из куриных грудок | F44: 90 | G44: 8.825 | H44: 6.799 | I44: 1.758 | J44: 104 | K44: ТТК 2021г июль
D45: гор.блюдо | E45: Макаронные изделия отварные | F45: 150 | G45: 5.602 | H45: 5.068 | I45: 35.406 | J45: 210 | K45: №309/2015г,Дели
D46: гор.напиток | E46: Напиток из урюка | F46: 200 | G46: 0.800 | H46: 0.064 | I46: 9.460 | J46: 42 | K46: ТТК №2693 от 14.09.2023 г
D47: хлеб | E47: Хлеб ржано-пшеничный/ Хлеб пшеничный | F47: 40 | G47: 2.520 | H47: 0.360 | I47: 18.840 | J47: 91
D48: фрукты | E48: Плоды и ягоды свежие (яблоки) | F48: 100 | G48: 0.400 | H48: 0.400 | I48: 9.800 | J48: 47 | K48: №338 Дели 2015г
D49: закуска | E49: Салат витаминный | F49: 60 | G49: 0.790 | H49: 3.101 | I49: 3.813 | J49: 46 | K49: №53 Сбор.2013 Саратов
D50: конд. изд. | E50: Печенье сдобное Американер с кунжутом | F50: 15 | G50: 1.246 | H50: 4.314 | I50: 8.270 | J50: 76 | K50: ТТК от 2021г
D51: итого | F51: =SUM(F44:F50) -> 655 | G51: =SUM(G44:G50) -> 20.183 | H51: =SUM(H44:H50) -> 20.106 | I51: =SUM(I44:I50) -> 87.347 | J51: =SUM(J44:J50) -> 616 | L51: 77.76
A52: =A44 -> 1 | B52: =B44 -> 3 | C52: Обед | D52: закуска
D53: 1 блюдо
D54: 2 блюдо
D55: гарнир
D56: напиток
D57: хлеб бел.
D58: хлеб черн.
D61: итого | F61: =SUM(F52:F60) -> 0 | G61: =SUM(G52:G60) -> 0 | H61: 0 | I61: 0 | J61: 0 | L61: =SUM(L52:L60) -> 0
A62: =A44 -> 1 | B62: =B44 -> 3 | C62: Итого за день: | F62: =F51+F61 -> 655 | G62: =G51+G61 -> 20.183 | H62: 20.106 | I62: 87.347 | J62: 616 | L62: =L51+L61 -> 77.76
A63: 1 | B63: 4 | C63: Завтрак | D63: гор.блюдо | E63: Плов с говядиной | F63: 190 | G63: 13.604 | H63: 12.543 | I63: 35.965 | J63: 311 | K63: ТТК 2021 г июль
D65: гор.напиток | E65: Напиток яблочный | F65: 200 | G65: 0.100 | H65: 0.100 | I65: 12.430 | J65: 52 | K65: №701 Сбор. Рецеп. 2004г
D66: хлеб | E66: Хлеб ржано-пшеничный/ Хлеб пшеничный | F66: 42 | G66: 2.672 | H66: 0.376 | I66: 19.824 | J66: 96
D68: закуска | E68: Салат из моркови с яблоками | F68: 60 | G68: 0.594 | H68: 6.084 | I68: 5.272 | J68: 79 | K68: №52/2015г,Дели
D69: конд. изд. | E69: Печенье весовое 3шт/ | F69: 9.6 | G69: 0.662 | H69: 1.325 | I69: 7.114 | J69: 43
D70: итого | F70: =SUM(F63:F69) -> 501.6 | G70: =SUM(G63:G69) -> 17.632 | H70: =SUM(H63:H69) -> 20.428 | I70: =SUM(I63:I69) -> 80.605 | J70: =SUM(J63:J69) -> 581 | L70: 77.76
A71: =A63 -> 1 | B71: =B63 -> 4 | C71: Обед | D71: закуска
D72: 1 блюдо
D73: 2 блюдо
D74: гарнир
D75: напиток
D76: хлеб бел.
D77: хлеб черн.
D80: итого | F80: =SUM(F71:F79) -> 0 | G80: =SUM(G71:G79) -> 0 | H80: 0 | I80: 0 | J80: 0 | L80: =SUM(L71:L79) -> 0
A81: =A63 -> 1 | B81: =B63 -> 4 | C81: Итого за день: | F81: =F70+F80 -> 501.6 | G81: =G70+G80 -> 17.632 | H81: 20.428 | I81: 80.605 | J81: 581 | L81: =L70+L80 -> 77.76
A82: 1 | B82: 5 | C82: Завтрак | D82: гор.блюдо | E82: Котлеты Аппетитные мясо-куриные | F82: 90 | G82: 9.069 | H82: 7.869 | I82: 13.196 | J82: 160 | K82: ТТК июль 2021г
D83: гор.блюдо | E83: Пюре картофельное | F83: 150 | G83: 3.282 | H83: 4.657 | I83: 22.027 | J83: 146 | K83: №312/2015г,Дели
D84: гор.напиток | E84: Чай с сахаром | F84: 208 | G84: 0.007 | H84: 0.002 | I84: 7.986 | J84: 32 | K84: ТТК от 2021г
D85: хлеб | E85: Хлеб ржано-пшеничный/ Хлеб пшеничный | F85: 40 | G85: 2.520 | H85: 0.360 | I85: 18.840 | J85: 91
D87: закуска | E87: Салат из свеклы отварной (с маслом) | F87: 60 | G87: 0.855 | H87: 3.653 | I87: 5.016 | J87: 56 | K87: №52/2015г,Дели
D89: итого | F89: =SUM(F82:F88) -> 548 | G89: =SUM(G82:G88) -> 15.733 | H89: 16.541 | I89: 67.065 | J89: =SUM(J82:J88) -> 485 | L89: 77.76
A90: =A82 -> 1 | B90: =B82 -> 5 | C90: Обед | D90: закуска
D91: 1 блюдо
D92: 2 блюдо
D93: гарнир
D94: напиток
D95: хлеб бел.
D96: хлеб черн.
D99: итого | F99: =SUM(F90:F98) -> 0 | G99: =SUM(G90:G98) -> 0 | H99: 0 | I99: 0 | J99: 0 | L99: =SUM(L90:L98) -> 0
A100: =A82 -> 1 | B100: =B82 -> 5 | C100: Итого за день: | F100: =F89+F99 -> 548 | G100: =G89+G99 -> 15.733 | H100: 16.541 | I100: 67.065 | J100: 485 | L100: =L89+L99 -> 77.76
A101: 1 | B101: 6 | C101: Завтрак | D101: гор.блюдо | E101: Пельмени для умников и умниц отварные с соусом для запекания | F101: 180 | G101: 12.700 | H101: 14.711 | I101: 28.004 | J101: 295 | K101: ТТК 2015г
D103: гор.напиток | E103: Чай с сахаром | F103: 208 | G103: 0.007 | H103: 0.002 | I103: 7.986 | J103: 32 | K103: ТТК от 2021г
D104: хлеб | E104: Хлеб ржано-пшеничный/ Хлеб пшеничный | F104: 40 | G104: 2.520 | H104: 0.360 | I104: 18.840 | J104: 91
D105: фрукты | E105: Плоды и ягоды свежие (яблоки) | F105: 100 | G105: 0.400 | H105: 0.400 | I105: 9.800 | J105: 47 | K105: №338 Дели 2015г
D107: конд. изд. | E107: Вафли весовые | F107: 21 | G107: 2.750 | H107: 2.500 | I107: 13.000 | J107: 86
D108: итого | F108: =SUM(F101:F107) -> 549 | G108: =SUM(G101:G107) -> 18.377 | H108: =SUM(H101:H107) -> 17.973 | I108: =SUM(I101:I107) -> 77.630 | J108: =SUM(J101:J107) -> 551 | L108: 77.76
A109: =A101 -> 1 | B109: 6 | C109: Обед | D109: закуска
D110: 1 блюдо
D111: 2 блюдо
D112: гарнир
D113: напиток
D114: хлеб бел.
D115: хлеб черн.
D118: итого | F118: =SUM(F109:F117) -> 0 | G118: =SUM(G109:G117) -> 0 | H118: 0 | I118: 0 | J118: 0 | L118: =SUM(L109:L117) -> 0
A119: =A101 -> 1 | B119: =B101 -> 6 | C119: Итого за день: | F119: =F108+F118 -> 549 | G119: =G108+G118 -> 18.377 | H119: 17.973 | I119: 77.630 | J119: 551 | L119: =L108+L118 -> 77.76
A120: 2 | B120: 1 | C120: Завтрак | D120: гор.блюдо | E120: Котлеты куриные "Нежные" | F120: 90 | G120: 10.857 | H120: 10.288 | I120: 8.947 | J120: 172 | K120: ТТК №1517 от 28.07.2021 г
D121: гор.блюдо | E121: Каша гречневая вязкая | F121: 150 | G121: 3.500 | H121: 4.033 | I121: 22.028 | J121: 138 | K121: №303/2015г,Дели
D122: гор.напиток | E122: Напиток из урюка | F122: 200 | G122: 0.800 | H122: 0.064 | I122: 9.460 | J122: 42 | K122: ТТК №2693 от 14.09.2023 г
D123: хлеб | E123: Хлеб ржано-пшеничный/ Хлеб пшеничный | F123: 40 | G123: 2.520 | H123: 0.360 | I123: 18.840 | J123: 91
D124: фрукты | E124: Плоды и ягоды свежие (яблоки) | F124: 100 | G124: 0.400 | H124: 0.400 | I124: 9.800 | J124: 47 | K124: №338 Дели 2015г
D126: конд. изд. | E126: Печенье весовое 5шт/ | F126: 16 | G126: 1.104 | H126: 2.208 | I126: 11.856 | J126: 71
D127: итого | F127: =SUM(F120:F126) -> 596 | G127: =SUM(G120:G126) -> 19.181 | H127: =SUM(H120:H126) -> 17.353 | I127: =SUM(I120:I126) -> 80.931 | J127: =SUM(J120:J126) -> 561 | L127: 77.76
A128: =A120 -> 2 | B128: =B120 -> 1 | C128: Обед | D128: закуска
D129: 1 блюдо
D130: 2 блюдо
D131: гарнир
D132: напиток
D133: хлеб бел.
D134: хлеб черн.
D137: итого | F137: =SUM(F128:F136) -> 0 | G137: =SUM(G128:G136) -> 0 | H137: 0 | I137: 0 | J137: 0 | L137: =SUM(L128:L136) -> 0
A138: =A120 -> 2 | B138: =B120 -> 1 | C138: Итого за день: | F138: =F127+F137 -> 596 | G138: =G127+G137 -> 19.181 | H138: 17.353 | I138: 80.931 | J138: 561 | L138: =L127+L137 -> 77.76
A139: 2 | B139: 2 | C139: Завтрак | D139: гор.блюдо | E139: Жаркое по-домашнему | F139: 190 | G139: 12.616 | H139: 13.616 | I139: 33.791 | J139: 308 | K139: ТТК №2382 от 10.03.2023 г
D141: гор.напиток | E141: Чай с сахаром | F141: 208 | G141: 0.007 | H141: 0.002 | I141: 7.986 | J141: 32 | K141: ТТК от 2021г
D142: хлеб | E142: Хлеб ржано-пшеничный/ Хлеб пшеничный | F142: 42 | G142: 2.620 | H142: 0.380 | I142: 19.740 | J142: 95
D144: закуска | E144: Салат из белокочанной капусты | F144: 60 | G144: 0.931 | H144: 3.051 | I144: 5.645 | J144: 54 | K144: №45/2015г,Дели
D146: итого | F146: =SUM(F139:F145) -> 500 | G146: =SUM(G139:G145) -> 16.174 | H146: 17.049 | I146: 67.162 | J146: 489 | L146: 77.76
A147: =A139 -> 2 | B147: =B139 -> 2 | C147: Обед | D147: закуска
D148: 1 блюдо
D149: 2 блюдо
D150: гарнир
D151: напиток
D152: хлеб бел.
D153: хлеб черн.
D156: итого | F156: =SUM(F147:F155) -> 0 | G156: =SUM(G147:G155) -> 0 | H156: 0 | I156: 0 | J156: 0 | L156: =SUM(L147:L155) -> 0
A157: =A139 -> 2 | B157: =B139 -> 2 | C157: Итого за день: | F157: =F146+F156 -> 500 | G157: =G146+G156 -> 16.174 | H157: 17.049 | I157: 67.162 | J157: 489 | L157: =L146+L156 -> 77.76
A158: 2 | B158: 3 | C158: Завтрак | D158: гор.блюдо | E158: Плов с куриными грудками | F158: 200 | G158: 12.760 | H158: 13.684 | I158: 28.283 | J158: 287 | K158: ТТК 2021г июль
D160: гор.напиток | E160: Компот из замороженной компотной смеси | F160: 200 | G160: 0.135 | H160: 0.023 | I160: 11.150 | J160: 46 | K160: ТТК 2021 г
D161: хлеб | E161: Хлеб ржано-пшеничный/ Хлеб пшеничный | F161: 40 | G161: 2.520 | H161: 0.360 | I161: 18.840 | J161: 91
D162: фрукты | E162: Плоды и ягоды свежие (яблоки) | F162: 100 | G162: 0.400 | H162: 0.400 | I162: 9.800 | J162: 47 | K162: №338 Дели 2015г
D163: закуска | E163: Салат из моркови | F163: 60 | G163: 0.702 | H163: 3.051 | I163: 6.720 | J163: 58 | K163: ТТК
D164: конд. изд. | E164: Вафли весовые | F164: 21 | G164: 2.750 | H164: 2.500 | I164: 13.000 | J164: 86
D165: итого | F165: =SUM(F158:F164) -> 621 | G165: =SUM(G158:G164) -> 19.267 | H165: =SUM(H158:H164) -> 20.018 | I165: 87.793 | J165: 615 | L165: 77.76
A166: =A158 -> 2 | B166: =B158 -> 3 | C166: Обед | D166: закуска
D167: 1 блюдо
D168: 2 блюдо
D169: гарнир
D170: напиток
D171: хлеб бел.
D172: хлеб черн.
D175: итого | F175: =SUM(F166:F174) -> 0 | G175: =SUM(G166:G174) -> 0 | H175: 0 | I175: 0 | J175: 0 | L175: =SUM(L166:L174) -> 0
A176: =A158 -> 2 | B176: =B158 -> 3 | C176: Итого за день: | F176: =F165+F175 -> 621 | G176: =G165+G175 -> 19.267 | H176: 20.018 | I176: 87.793 | J176: 615 | L176: =L165+L175 -> 77.76
A177: 2 | B177: 4 | C177: Завтрак | D177: гор.блюдо | E177: Фрикассе из куриных грудок | F177: 90 | G177: 8.150 | H177: 5.604 | I177: 3.241 | J177: 96 | K177: ТТК июль 2021г
D178: гор.блюдо | E178: Макаронные изделия отварные | F178: 150 | G178: 5.602 | H178: 5.068 | I178: 35.406 | J178: 210 | K178: №309/2015г,Дели
D179: гор.напиток | E179: Компот из свежих плодов (яблоки) | F179: 200 | G179: 0.080 | H179: 0.080 | I179: 11.940 | J179: 49 | K179: ТТК от 2021г
D180: хлеб | E180: Хлеб ржано-пшеничный/ Хлеб пшеничный | F180: 40 | G180: 2.520 | H180: 0.360 | I180: 18.840 | J180: 91
D182: закуска | E182: Салат любительский | F182: 60 | G182: 0.930 | H182: 5.050 | I182: 2.810 | J182: 61 | K182: ТТК от 3.02.2022 г
D183: конд. изд. | E183: Печенье сдобное Американер с кунжутом | F183: 15 | G183: 1.246 | H183: 4.314 | I183: 8.270 | J183: 76 | K183: ТТК от 2021г
D184: итого | F184: =SUM(F177:F183) -> 555 | G184: =SUM(G177:G183) -> 18.528 | H184: =SUM(H177:H183) -> 20.476 | I184: =SUM(I177:I183) -> 80.507 | J184: =SUM(J177:J183) -> 583 | L184: 77.76
A185: =A177 -> 2 | B185: =B177 -> 4 | C185: Обед | D185: закуска
D186: 1 блюдо
D187: 2 блюдо
D188: гарнир
D189: напиток
D190: хлеб бел.
D191: хлеб черн.
D194: итого | F194: =SUM(F185:F193) -> 0 | G194: =SUM(G185:G193) -> 0 | H194: =SUM(H185:H193) -> 0 | I194: 0 | J194: 0 | L194: =SUM(L185:L193) -> 0
A195: =A177 -> 2 | B195: =B177 -> 4 | C195: Итого за день: | F195: =F184+F194 -> 555 | G195: =G184+G194 -> 18.528 | H195: 20.476 | I195: 80.507 | J195: 583 | L195: =L184+L194 -> 77.76
A196: 2 | B196: 5 | C196: Завтрак | D196: гор.блюдо | E196: Котлеты сытные | F196: 90 | G196: 11.659 | H196: 6.304 | I196: 8.104 | J196: 136 | K196: ТТК №3410 от 06.10.2025г
D197: гор.блюдо | E197: Картофель запеченный (из сырого) | F197: 150 | G197: 3.507 | H197: 8.224 | I197: 28.402 | J197: 202 | K197: ТТК
D198: гор.напиток | E198: Чай с сахаром | F198: 208 | G198: 0.007 | H198: 0.002 | I198: 7.986 | J198: 32 | K198: ТТК от 2021г
D199: хлеб | E199: Хлеб ржано-пшеничный/ Хлеб пшеничный | F199: 40 | G199: 2.520 | H199: 0.360 | I199: 18.840 | J199: 91
D201: закуска | E201: Салат из белокочанной капусты | F201: 60 | G201: 0.931 | H201: 3.051 | I201: 5.645 | J201: 54 | K201: №45/2015г,Дели
D202: конд. изд. | E202: Печенье весовое 5шт/ | F202: 16 | G202: 1.104 | H202: 2.208 | I202: 11.856 | J202: 71
D203: итого | F203: =SUM(F196:F202) -> 564 | G203: =SUM(G196:G202) -> 19.728 | H203: =SUM(H196:H202) -> 20.149 | I203: =SUM(I196:I202) -> 80.833 | J203: =SUM(J196:J202) -> 586 | L203: 77.76
A204: =A196 -> 2 | B204: =B196 -> 5 | C204: Обед | D204: закуска
D205: 1 блюдо
D206: 2 блюдо
D207: гарнир
D208: напиток
D209: хлеб бел.
D210: хлеб черн.
D213: итого | F213: =SUM(F204:F212) -> 0 | G213: =SUM(G204:G212) -> 0 | H213: 0 | I213: 0 | J213: 0 | L213: =SUM(L204:L212) -> 0
A214: =A196 -> 2 | B214: =B196 -> 5 | C214: Итого за день: | F214: =F203+F213 -> 564 | G214: =G203+G213 -> 19.728 | H214: 20.149 | I214: 80.833 | J214: 586 | L214: =L203+L213 -> 77.76
A215: 2 | B215: 6 | C215: Завтрак | D215: гор.блюдо | E215: Сосиски отварные с соусом для запекания | F215: 90 | G215: 10.216 | H215: 11.143 | I215: 3.758 | J215: 156 | K215: №243/2015г,Дели
D216: гор.блюдо | E216: Рис отварной | F216: 150 | G216: 3.834 | H216: 4.434 | I216: 38.014 | J216: 207 | K216: №304/2015г,Дели
D217: гор.напиток | E217: Чай с сахаром | F217: 208 | G217: 0.007 | H217: 0.002 | I217: 7.986 | J217: 32 | K217: ТТК от 2021г
D218: хлеб | E218: Хлеб ржано-пшеничный/ Хлеб пшеничный | F218: 40 | G218: 2.520 | H218: 0.360 | I218: 18.840 | J218: 91
D219: фрукты | E219: Плоды и ягоды свежие (яблоки) | F219: 100 | G219: 0.400 | H219: 0.400 | I219: 9.800 | J219: 47 | K219: №338 Дели 2015г
D221: конд. изд. | E221: Печенье сдобное шоколадное | F221: 15 | G221: 1.166 | H221: 4.183 | I221: 9.224 | J221: 79 | K221: Акт от 2021г
D222: итого | F222: =SUM(F215:F221) -> 603 | G222: =SUM(G215:G221) -> 18.143 | H222: =SUM(H215:H221) -> 20.522 | I222: =SUM(I215:I221) -> 87.622 | J222: =SUM(J215:J221) -> 612 | L222: 77.76
A223: =A215 -> 2 | B223: 6 | C223: Обед | D223: закуска
D224: 1 блюдо
D225: 2 блюдо
D226: гарнир
D227: напиток
D228: хлеб бел.
D229: хлеб черн.
D232: итого | F232: =SUM(F223:F231) -> 0 | G232: =SUM(G223:G231) -> 0 | H232: 0 | I232: 0 | J232: 0 | L232: =SUM(L223:L231) -> 0
A233: =A215 -> 2 | B233: =B215 -> 6 | C233: Итого за день: | F233: =F222+F232 -> 603 | G233: =G222+G232 -> 18.143 | H233: 20.522 | I233: 87.622 | J233: 612 | L233: =L222+L232 -> 77.76
C234: Среднее значение за период: | F234: =(F233+F214+F195+F176+F157+F138+F119+F100+F81+F62+F43+F24)/12 -> 574 | G234: =(G233+G214+G195+G176+G157+G138+G119+G100+G81+G62+G43+G24)/12 -> 18.503 | H234: =(H233+H214+H195+H176+H157+H138+H119+H100+H81+H62+H43+H24)/12 -> 19.262 | I234: =(I233+I214+I195+I176+I157+I138+I119+I100+I81+I62+I43+I24)/12 -> 80.823 | J234: =(J233+J214+J195+J176+J157+J138+J119+J100+J81+J62+J43+J24)/12 -> 575 | L234: 77.76
